bitfinex/quotes_ETHUSD_20220112
["timestamp","ask_amount","ask_price","bid_price","bid_amount"]
[1641975165277,0.77463,3228.0,3227.7,2.83691186]
[1641975165477,0.01207601,3229.0,3227.7,2.83691186]
[1641975165478,18.2,3229.5,3228.9,1.35295701]
[1641975165679,18.2,3229.5,3227.8,1.0]
[1641975165877,1.54866,3229.0,3228.3,5.99886315]
[1641975166136,1.54866,3229.0,3228.4,1.0]
[1641975166325,1.54866,3229.0,3228.6,0.77429]
[1641975166526,3.3901453,3229.0,3228.6,0.77429]
[1641975167327,1.54864,3228.9,3228.5,3.61009502]
[1641975167527,0.3,3228.8,3228.5,0.77432]
[1641975167726,0.3,3228.8,3228.6,1.0]
[1641975167727,0.30397896,3228.8,3228.6,1.0]
[1641975167926,0.00341054,3228.7,3228.5,0.77432]
[1641975168327,0.00284212,3228.6,3228.4,3.61392626]
[1641975168732,2.32297,3229.7,3229.0,4.4636262]
[1641975168733,1.28562526,3229.3,3229.0,4.4636262]
[1641975168930,0.77432,3229.2,3229.0,4.4636262]
[1641975169128,1.07432,3229.2,3229.0,4.4636262]
[1641975170883,1.07432,3229.2,3229.0,3.1982662]
[1641975171386,0.3,3229.2,3229.0,3.1982662]
[1641975171583,0.3,3229.3,3229.0,3.1982662]
[1641975171985,0.00397897,3229.2,3229.0,3.1982662]
[1641975172283,0.3,3229.3,3229.0,3.1982662]
[1641975172284,0.00341054,3229.1,3229.0,3.1982662]
[1641975174430,0.00341054,3229.1,3229.0,7.18676609]
[1641975174831,0.00341054,3229.1,3229.0,7.20225327]
[1641975175032,0.00341054,3229.1,3229.0,7.18575693]
[1641975175232,0.00341054,3229.1,3229.0,4.7465262]
[1641975175836,0.00341054,3229.1,3229.0,3.1982662]
[1641975177481,0.00341054,3229.1,3229.0,4.1982662]
[1641975178281,0.00341054,3229.1,3229.0,8.21588213]
[1641975178480,0.00341054,3229.1,3229.0,5.38549547]
[1641975178681,0.00341054,3229.1,3229.0,4.1982662]
[1641975179384,0.00341054,3229.1,3229.0,3.1982662]
[1641975179985,1.50416942,3229.1,3229.0,3.1982662]
[1641975181229,1.50416942,3229.1,3228.8,1.2307]
[1641975181430,0.3,3229.0,3228.8,1.2307]
[1641975181638,1.85152212,3229.0,3228.8,1.2307]
[1641975181829,0.0022737,3228.9,3228.7,7.5]
[1641975182232,1.84868,3229.0,3228.7,7.5]
[1641975182233,0.00170527,3228.8,3228.7,7.5]
[1641975184634,0.00170527,3228.8,3228.7,10.10973823]
[1641975185277,0.00170527,3228.8,3228.7,7.5]
[1641975194583,0.00170527,3228.8,3228.2,1.2023]
[1641975194783,1.54898,3228.6,3228.2,1.2023]
[1641975194985,1.54898,3228.6,3228.3,0.00113684]
[1641975194986,0.3,3228.5,3228.3,0.00113684]
[1641975195190,0.3,3228.5,3228.4,7.5]
[1641975195384,0.3,3228.5,3228.3,0.00113684]
[1641975195585,1.48744889,3228.5,3228.3,0.00113684]
[1641975197028,0.3,3228.5,3228.3,0.00113684]
[1641975197429,0.3,3228.5,3228.4,7.5]
[1641975198027,1.59224984,3228.5,3228.4,7.5]
[1641975201683,0.3,3228.5,3228.4,7.5]
[1641975203086,1.61495393,3228.5,3228.4,7.5]
[1641975203485,2.3234754,3228.6,3228.4,7.5]
[1641975203732,3.09907685,3228.7,3228.5,0.07078042]
[1641975203733,0.00113685,3228.7,3228.5,0.07078042]
[1641975203931,0.00113685,3228.7,3228.5,3.83038666]
[1641975204328,0.00113685,3228.7,3228.6,5.85]
[1641975204528,0.00113685,3228.7,3228.6,3.35954408]
[1641975204936,0.00113685,3228.7,3228.6,2.35954408]
[1641975205135,0.00113685,3228.7,3228.6,4.13382408]
[1641975205335,0.00113685,3228.7,3228.6,3.13382408]
[1641975205536,0.00113685,3228.7,3228.6,4.13382408]
[1641975205740,0.00113685,3228.7,3228.6,2.97248]
[1641975206537,0.00113685,3228.7,3228.6,5.66970941]
[1641975207137,0.00113685,3228.7,3228.6,6.86014852]
[1641975209587,15.0,3230.0,3228.7,7.9]
[1641975209789,15.0,3230.0,3228.8,3.27938666]
[1641975209986,0.00454739,3229.5,3229.4,0.77402]
[1641975210788,0.00454739,3229.5,3229.4,2.08766784]
[1641975212124,0.00454739,3229.5,3229.4,5.62551145]
[1641975221737,0.00454739,3229.5,3229.4,5.65708444]
[1641975223609,0.00454739,3229.5,3229.4,4.65708444]
[1641975225098,0.00454739,3229.5,3229.4,2.08766784]
[1641975225499,0.00454739,3229.5,3229.4,1.31364784]
[1641975226935,0.30454739,3229.5,3229.4,1.31364784]
[1641975227534,0.30454739,3229.5,3229.1,1.1819]
[1641975227733,1.54851,3229.4,3229.1,1.1819]
[1641975227932,1.55248897,3229.4,3229.1,1.1819]
[1641975228132,0.30341054,3229.3,3229.1,1.1819]
[1641975228532,0.00284212,3229.2,3229.0,6.0]
[1641975228933,0.00227369,3229.1,3229.0,6.0]
[1641975232488,0.00227369,3229.1,3228.5,3.8228]
[1641975232688,1.5487955,3228.9,3228.5,3.8228]
[1641975232889,2.3231855,3228.9,3228.5,3.8228]
[1641975233090,0.3,3228.8,3228.5,3.8228]
[1641975233290,0.3,3228.8,3228.4,7.04239708]
[1641975265843,0.00341054,3229.3,3229.2,3.5029684]
[1641975299791,0.3045,3229.4,3229.3,4.71217601]
[1641975300190,0.3045,3229.4,3229.3,4.41217601]
[1641975301739,0.3045,3229.4,3229.3,4.71217601]
[1641975304346,14.60341054,3230.0,3229.3,4.71217601]
[1641975304545,0.3045,3229.9,3229.7,1.46909111]
[1641975304749,0.30791054,3229.9,3229.7,1.46909111]
[1641975305192,0.30791054,3229.9,3229.6,0.77404]
[1641975305394,0.30791054,3229.9,3229.3,2.63814601]
[1641975305395,3.18562902,3229.9,3229.3,2.63814601]
[1641975305593,0.30791054,3229.9,3229.4,2.81872978]
[1641975305793,0.30791054,3229.9,3228.7,2.81872978]
[1641975306194,0.30791054,3229.9,3228.8,1.22364212]
[1641975306395,0.30791054,3229.9,3229.7,1.21050786]
[1641975306995,0.30791054,3229.9,3229.8,1.45575559]
[1641975307399,0.30791054,3229.9,3229.8,3.22968559]
[1641975308000,0.30791054,3229.9,3229.8,3.52968559]
[1641975308198,0.30791054,3229.9,3229.8,3.22968559]
[1641975308398,6.11,3231.5,3229.9,4.5]
[1641975308399,4.61859,3231.2,3229.9,4.5]
[1641975308650,0.77379,3231.2,3231.1,1.42388351]
[1641975309446,0.77379,3231.2,3231.1,0.72083192]
[1641975309644,1.07379,3231.2,3231.1,0.72083192]
[1641975317747,0.77379,3231.2,3231.1,0.72083192]
[1641975318948,1.07379,3231.2,3231.1,0.36041596]
[1641975319152,1.07379,3231.2,3230.1,3.921]
[1641975319153,0.77391,3230.8,3230.1,3.921]
[1641975319349,0.77391,3230.8,3229.9,3.8697]
[1641975319549,1.07391,3230.8,3229.9,3.8697]
[1641975319750,0.3,3230.8,3229.9,3.8697]
[1641975319991,1.38073878,3231.1,3229.9,3.8697]
[1641975320196,0.60682108,3231.1,3230.5,1.49746854]
[1641975320395,1.54797,3230.8,3230.5,1.49746854]
[1641975320694,0.00454739,3230.7,3230.5,1.49746854]
[1641975321097,0.00397897,3230.6,3230.5,1.49746854]
[1641975321295,1.55186897,3230.6,3230.5,1.49746854]
[1641975321495,1.85186897,3230.6,3230.5,1.49746854]
[1641975322694,0.30397897,3230.6,3230.5,1.49746854]
[1641975322893,0.00397897,3230.6,3230.5,1.49746854]
[1641975324044,0.30847897,3230.6,3230.5,1.49746854]
[1641975327389,0.30847897,3230.6,3230.5,4.29342251]
[1641975327590,0.30847897,3230.6,3230.5,5.29342251]
[1641975330198,0.30847897,3230.6,3230.5,5.74242251]
[1641975330397,0.7736,3231.6,3230.6,1.35464573]
[1641975330600,0.7736,3231.6,3231.5,1.21596295]
[1641975331545,0.7736,3231.6,3231.2,1.77362]
[1641975331942,0.00511581,3231.5,3231.2,1.77362]
[1641975332142,0.30511581,3231.5,3231.2,1.77362]
[1641975332343,0.00454738,3231.4,3231.2,1.77362]
[1641975332746,0.00397896,3231.3,3231.2,1.77362]
[1641975335694,0.00397896,3231.3,3231.2,1.0]
[1641975336694,0.77763896,3231.3,3231.1,1.2432]
[1641975336995,0.00341054,3231.2,3231.1,0.77364]
[1641975337794,0.30341054,3231.2,3231.1,0.77364]
[1641975339252,0.00341054,3231.2,3231.1,0.77364]
[1641975340856,0.00341054,3231.2,3231.0,1.0]
[1641975341256,0.00284211,3231.1,3231.0,1.0]
[1641975343700,0.00284211,3231.1,3230.8,1.0]
[1641975343898,0.77376,3231.0,3230.8,1.0]
[1641975344101,0.77603369,3231.0,3230.8,1.77367]
[1641975344301,0.00170527,3230.9,3230.8,1.77367]
[1641975344500,0.00170527,3230.9,3230.8,0.77367]
[1641975345700,0.00170527,3230.9,3230.8,1.95044671]
[1641975347670,0.00170527,3230.9,3230.8,2.25044671]
[1641975347871,0.00170527,3230.9,3230.8,1.95044671]
[1641975348073,0.00170527,3230.9,3230.8,0.77367]
[1641975348272,2.83324197,3230.9,3230.0,3.8225]
[1641975348475,0.30170527,3230.9,3230.0,3.8225]
[1641975348674,0.77393,3230.6,3230.1,0.00284212]
[1641975348874,0.3,3230.5,3230.1,0.00284212]
[1641975349276,0.3,3230.5,3230.4,1.54682156]
[1641975349673,1.07393,3230.5,3230.4,0.00113685]
[1641975350094,1.07393,3230.5,3230.2,0.0022737]
[1641975350496,2.32292244,3230.8,3230.2,0.0022737]
[1641975350497,0.00113684,3230.8,3230.3,1.54772]
[1641975350896,0.00113684,3230.8,3230.5,1.46755525]
[1641975351600,0.00113684,3230.8,3230.4,0.00113685]
[1641975351997,0.77396,3230.7,3230.2,0.0022737]
[1641975352199,0.7740661,3230.6,3230.2,0.0022737]
[1641975352399,0.7740661,3230.6,3230.3,1.23826528]
[1641975352798,0.7740661,3230.6,3230.4,0.00113685]
[1641975353659,0.7740661,3230.6,3230.2,0.0022737]
[1641975353859,1.5480758,3230.4,3230.2,0.0022737]
[1641975354464,4.50645448,3230.8,3230.2,0.0022737]
[1641975354864,0.77402,3230.6,3230.2,0.0022737]
[1641975355763,1.53838593,3230.6,3230.2,0.0022737]
[1641975356970,0.76440793,3230.6,3230.2,0.0022737]
[1641975358791,1.54917684,3230.8,3230.2,0.0022737]
[1641975359390,2.93699749,3230.7,3230.2,0.0022737]
[1641975359593,1.54917684,3230.8,3230.2,0.0022737]
[1641975360298,0.77396,3230.7,3230.2,0.0022737]
[1641975360496,0.00113684,3230.8,3230.2,0.0022737]
[1641975361340,0.7740383,3230.7,3230.2,0.0022737]
[1641975363142,3.74845761,3230.7,3230.2,0.0022737]
[1641975363344,0.774126,3230.5,3230.2,0.0022737]
[1641975363542,0.774126,3230.5,3229.9,0.00397897]
[1641975363742,0.77406,3230.7,3230.0,0.77402]
[1641975364142,0.77406,3230.7,3230.2,1.32631973]
[1641975364543,0.7740577,3230.6,3230.3,0.00170527]
[1641975365213,0.77406,3230.7,3230.3,0.00170527]
[1641975366313,0.77406,3230.7,3229.8,0.00454739]
[1641975366513,0.00113684,3230.8,3230.0,0.77401]
[1641975366917,0.30113684,3230.8,3230.3,1.10353364]
[1641975367114,18.50113684,3230.8,3229.8,1.00454739]
[1641975367321,18.50113684,3230.8,3229.7,1.46428883]
[1641975367322,18.20113684,3230.8,3230.4,0.00113685]
[1641975367515,18.20113684,3230.8,3229.9,0.00397897]
[1641975367714,0.7740976,3230.7,3229.8,0.30454739]
[1641975367916,18.20113684,3230.8,3229.8,0.00454739]
[1641975368115,18.20113684,3230.8,3229.7,1.46428883]
[1641975368116,18.20113684,3230.8,3230.4,1.11387493]
[1641975368315,18.20113684,3230.8,3229.8,0.00454739]
[1641975368743,0.7740811,3230.4,3229.8,0.00454739]
[1641975369547,0.7740811,3230.4,3230.1,1.38463476]
[1641975369953,0.7740811,3230.4,3230.2,0.0022737]
[1641975373391,1.5036911,3230.4,3230.2,0.0022737]
[1641975373590,0.7295811,3230.4,3230.2,0.0022737]
[1641975374392,18.2,3230.7,3230.2,0.0022737]
[1641975374393,0.7740382,3230.7,3230.2,0.0022737]
[1641975374592,0.7740382,3230.7,3230.2,1.36846881]
[1641975374792,1.5480982,3230.7,3230.2,1.36846881]
[1641975374996,1.5480982,3230.7,3230.3,0.00170527]
[1641975375396,1.5480982,3230.7,3230.2,0.0022737]
[1641975375997,0.7740382,3230.7,3230.2,0.0022737]
[1641975376256,0.7657664,3230.7,3230.2,0.0022737]
[1641975384539,18.9657664,3230.7,3230.2,0.0022737]
[1641975385141,0.7741184,3230.4,3230.2,0.0022737]
[1641975385342,0.7741184,3230.4,3229.6,1.00568424]
[1641975385545,20.8224028,3230.6,3229.9,0.00397897]
[1641975385842,20.8224028,3230.6,3229.6,0.00568424]
[1641975386245,1.09639782,3230.4,3229.6,1.50942279]
[1641975386446,1.39639782,3230.4,3229.6,1.50942279]
[1641975386643,1.39639782,3230.4,3229.7,0.00511581]
[1641975386844,0.3,3230.4,3229.7,0.00511581]
[1641975387144,1.3,3230.5,3229.7,0.00511581]
[1641975387399,1.5484098,3230.4,3229.7,0.00511581]
[1641975387592,0.3,3230.2,3228.2,3.16765296]
[1641975387792,18.2,3230.0,3228.2,2.7023351]
[1641975387989,18.2,3229.8,3228.9,0.00454739]
[1641975388389,1.449,3229.7,3229.0,1.48166001]
[1641975388589,1.44029351,3229.7,3229.0,1.48166001]
[1641975388792,1.5489094,3229.3,3229.1,0.00341055]
[1641975388991,0.449,3229.2,3229.1,0.00341055]
[1641975389996,0.749,3229.2,3229.1,0.00341055]
[1641975390496,0.749,3229.2,3228.4,0.00738951]
[1641975390897,1.52347,3229.2,3228.4,0.00738951]
[1641975391139,0.7744408,3229.0,3228.7,1.32262042]
[1641975391543,0.7744408,3229.0,3228.8,0.00511582]
[1641975392242,0.7744408,3229.0,3228.4,0.00738951]
[1641975392446,0.7745083,3228.8,3228.4,0.00738951]
[1641975392845,0.7745083,3228.8,3228.4,1.42840803]
[1641975393045,0.7745083,3228.8,3228.4,0.00738951]
[1641975393246,0.7745083,3228.8,3228.5,0.00682109]
[1641975393444,0.7745083,3228.8,3228.4,0.00738951]
[1641975394893,0.7745083,3228.8,3228.6,1.09878612]
[1641975395291,0.7745083,3228.8,3228.7,0.00568424]
[1641975395693,0.7745083,3228.8,3228.4,0.00738951]
[1641975396296,0.7745083,3228.8,3228.5,1.41161118]
[1641975396695,0.7745083,3228.8,3228.6,0.00625266]
[1641975400146,1.0745083,3228.8,3228.6,0.00625266]
[1641975401251,0.449,3228.7,3228.6,0.00625266]
[1641975401446,18.649,3228.7,3228.6,0.00625266]
[1641975401646,18.649,3228.7,3227.8,0.01080005]
[1641975401846,2.3238935,3228.4,3227.4,0.01307374]
[1641975402048,1.8492623,3228.4,3227.4,0.01307374]
[1641975402489,2.6239323,3228.4,3227.8,1.44609278]
[1641975402893,2.6239323,3228.4,3227.9,0.01023163]
[1641975403092,20.8239323,3228.4,3227.9,0.01023163]
[1641975403690,0.7746212,3228.2,3227.9,0.01023163]
[1641975404090,1.03240087,3228.2,3227.9,0.01023163]
[1641975404691,0.73240087,3228.2,3227.9,0.01023163]
[1641975405095,1.03240087,3228.2,3227.9,0.01023163]
[1641975405296,0.73240087,3228.2,3227.9,0.01023163]
[1641975408768,0.7745488,3228.4,3227.9,0.01023163]
[1641975409368,1.5491411,3228.6,3227.9,0.01023163]
[1641975410203,1.5490476,3228.7,3227.9,0.01023163]
[1641975410401,0.77455,3228.7,3227.9,0.01023163]
[1641975410600,0.7746,3228.4,3227.9,0.01023163]
[1641975411001,1.0746,3228.4,3227.9,0.01023163]
[1641975411905,0.7746,3228.4,3227.9,0.01023163]
[1641975412102,0.774582,3228.3,3227.9,0.01023163]
[1641975412702,1.5491349,3228.6,3227.9,0.01023163]
[1641975412902,1.8491349,3228.6,3227.9,0.01023163]
[1641975413101,1.5491349,3228.6,3227.9,0.01023163]
[1641975413651,0.7745209,3228.5,3227.9,0.01023163]
[1641975413854,0.3866039,3229.2,3227.9,0.01023163]
[1641975413855,0.449,3229.5,3228.1,1.09222441]
[1641975414054,0.449,3229.5,3228.6,1.3159804]
[1641975414055,0.77446,3229.2,3228.6,1.3159804]
[1641975414254,0.77446,3229.2,3228.3,3.8237]
[1641975414555,0.3,3229.1,3228.4,0.00738951]
[1641975414957,0.7745443,3228.9,3228.4,0.00738951]
[1641975415356,1.5491122,3229.0,3228.3,0.00795793]
[1641975415557,1.8491122,3229.0,3228.3,0.00795793]
[1641975415759,0.77452,3228.8,3228.3,0.00795793]
[1641975416161,1.07452,3228.8,3228.3,0.00795793]
[1641975416357,0.77452,3228.8,3228.3,0.00795793]
[1641975416559,1.07452,3228.8,3228.3,0.00795793]
[1641975416759,0.7745255,3228.6,3228.3,0.00795793]
[1641975418809,1.0744719,3228.8,3228.3,0.00795793]
[1641975419010,1.8489919,3228.8,3228.3,0.00795793]
[1641975419213,1.83671025,3228.8,3228.3,0.00795793]
[1641975419413,1.06219025,3228.8,3228.3,0.00795793]
[1641975420313,1.83673025,3228.8,3228.3,0.00795793]
[1641975422549,1.5491702,3228.7,3228.3,0.00795793]
[1641975422751,0.7745791,3228.6,3228.3,0.00795793]
[1641975422951,1.0745791,3228.6,3228.3,0.00795793]
[1641975428853,0.77462,3228.5,3228.3,0.00795793]
[1641975429552,1.0745791,3228.6,3228.3,0.00795793]
[1641975432057,19.2745791,3228.6,3228.3,0.00795793]
[1641975432705,1.0745791,3228.6,3228.3,0.00795793]
[1641975434610,19.2745791,3228.6,3228.3,0.00795793]
[1641975434805,1.0745791,3228.6,3228.3,0.00795793]
[1641975439457,0.7745791,3228.6,3228.3,0.00795793]
[1641975440904,1.0745791,3228.6,3228.3,0.00795793]
[1641975443107,0.449,3229.7,3228.3,3.9058977]
[1641975443306,0.774407,3229.1,3228.3,3.9058977]
[1641975443508,0.774407,3229.1,3228.4,0.00738951]
[1641975443749,1.5488139,3229.5,3228.4,0.00738951]
[1641975443949,0.449,3229.7,3228.4,0.00738951]
[1641975444149,18.2,3229.6,3229.2,1.47004431]
[1641975444451,18.97437,3229.6,3229.3,0.0022737]
[1641975444851,19.27437,3229.6,3228.6,1.95287]
[1641975445053,19.27437,3229.6,3228.7,0.00568424]
[1641975445257,0.7743516,3229.4,3228.7,2.12829238]
[1641975445456,0.7743516,3229.4,3229.2,1.18688481]
[1641975445753,0.3,3229.3,3229.2,1.18688481]
[1641975446156,0.3,3229.3,3229.2,1.18972693]
[1641975446555,1.07439,3229.3,3229.2,1.18972693]
[1641975447413,0.3,3229.3,3229.2,1.18972693]
[1641975447604,0.7742777,3229.6,3229.2,3.85599268]
[1641975447903,0.7742777,3229.6,3229.3,0.0022737]
[1641975454170,0.7742777,3229.6,3229.0,0.00397897]
[1641975454568,0.7742777,3229.6,3228.8,0.00511582]
[1641975454920,0.7742777,3229.6,3228.9,1.22338596]
[1641975455325,0.7742777,3229.6,3229.0,0.00397897]
[1641975457924,18.2,3229.9,3229.0,0.00397897]
[1641975458224,18.2,3229.5,3228.8,0.00511582]
[1641975458527,18.5,3229.5,3228.8,0.00511582]
[1641975459157,1.13239849,3229.3,3228.8,0.00511582]
[1641975459554,1.90688849,3229.3,3228.8,0.00511582]
[1641975459754,0.7744719,3229.2,3228.8,0.00511582]
[1641975460357,0.7744719,3229.2,3228.7,0.00568424]
[1641975466009,0.7744719,3229.2,3228.8,0.08304255]
[1641975466449,0.7744719,3229.2,3228.9,0.00454739]
[1641975466849,0.7744719,3229.2,3228.8,0.00511582]
[1641975467652,0.7743366,3229.5,3228.8,0.00511582]
[1641975468253,0.7743366,3229.5,3228.7,2.57276609]
[1641975468452,0.7743366,3229.5,3228.8,0.00511582]
[1641975470118,0.7743366,3229.5,3229.3,0.07018897]
[1641975470319,0.774285,3229.7,3229.3,0.07018897]
[1641975470521,0.774285,3229.7,3229.4,0.00170527]
[1641975470818,0.774285,3229.7,3229.3,0.0022737]
[1641975471623,1.5486034,3230.0,3229.4,1.519148]
[1641975471820,0.3,3229.9,3229.4,1.519148]
[1641975472122,0.30113684,3229.9,3229.5,0.00113685]
[1641975472620,0.00113684,3229.9,3229.5,0.00113685]
[1641975474055,0.00113684,3229.9,3229.5,0.77526685]
[1641975474454,0.00113684,3229.9,3229.5,1.77526685]
[1641975474655,0.00113684,3229.9,3229.5,0.77526685]
[1641975477261,0.00113684,3229.9,3229.6,2.73876685]
[1641975477506,0.00113684,3229.9,3229.7,1.2037]
[1641975477707,0.00113684,3229.9,3229.8,2.48495938]
[1641975478711,0.00113684,3229.9,3229.7,1.2037]
[1641975479811,0.00113684,3229.9,3229.8,2.50721408]
[1641975480314,0.00113684,3229.9,3229.8,2.54542626]
[1641975480710,0.00113684,3229.9,3229.7,1.2037]
[1641975480914,0.00113684,3229.9,3229.8,2.5335262]
[1641975483461,0.00113684,3229.9,3229.8,2.50647904]
[1641975483863,0.00113684,3229.9,3229.7,1.2037]
[1641975484063,0.00113684,3229.9,3229.8,2.50617513]
[1641975484264,0.00113684,3229.9,3229.7,1.2037]
[1641975490878,0.00113684,3229.9,3229.7,3.05178]
[1641975491082,0.00113684,3229.9,3229.8,12.8277]
[1641975491278,0.00113684,3229.9,3229.8,13.4972]
[1641975491481,2.9554407,3231.5,3231.3,1.49547745]
[1641975491677,2.9554407,3231.5,3230.5,0.77382]
[1641975491678,0.123904,3231.5,3230.5,0.77382]
[1641975491878,0.00852635,3231.4,3231.1,1.11057082]
[1641975492279,0.00795793,3231.3,3230.9,1.54763]
[1641975492708,0.00738951,3231.2,3230.9,1.54763]
[1641975492911,0.00738951,3231.2,3230.9,2.74758723]
[1641975493110,0.00682108,3231.1,3231.0,0.3]
[1641975493310,0.00682108,3231.1,3231.0,1.81369006]
[1641975494110,0.00682108,3231.1,3231.0,5.7219832]
[1641975494710,0.00682108,3231.1,3231.0,3.05869006]
[1641975497458,0.00682108,3231.1,3231.0,2.75869006]
[1641975498661,0.00682108,3231.1,3231.0,3.05869006]
[1641975500715,0.00682108,3231.1,3231.0,2.75869006]
[1641975500914,0.00682108,3231.1,3231.0,3.05869006]
[1641975501916,0.00682108,3231.1,3231.0,1.545]
[1641975502115,0.00682108,3231.1,3231.0,1.245]
[1641975502517,0.00682108,3231.1,3231.0,1.545]
[1641975502918,0.00682108,3231.1,3231.0,2.89133461]
[1641975504156,0.9691677,3232.0,3231.8,1.36656292]
[1641975504355,0.9691677,3232.0,3231.8,2.14012292]
[1641975504554,0.9691677,3232.0,3231.8,2.44012292]
[1641975504555,0.00454739,3231.9,3231.8,2.44012292]
[1641975506560,0.00454739,3231.9,3231.8,1.07356]
[1641975507813,0.00454739,3231.9,3231.8,2.49171681]
[1641975509715,0.00454739,3231.9,3231.8,2.19171681]
[1641975511666,0.00454739,3231.9,3231.8,2.49171681]
[1641975513670,0.00454739,3231.9,3231.8,1.07356]
[1641975515911,0.00454739,3231.9,3231.8,0.77356]
[1641975516115,0.00454739,3231.9,3231.8,1.07356]
[1641975517113,0.00454739,3231.9,3231.8,0.3]
[1641975517511,0.00454739,3231.9,3231.7,1.84712]
[1641975517913,0.00397897,3231.8,3231.7,1.84712]
[1641975518113,0.00397897,3231.8,3231.5,1.1308]
[1641975518313,0.00397897,3231.8,3231.6,0.3]
[1641975518513,0.00341054,3231.7,3231.6,0.3]
[1641975519964,0.00341054,3231.7,3231.5,1.1308]
[1641975520362,0.9691677,3232.0,3231.6,0.3]
[1641975520769,0.00454739,3231.9,3231.6,0.3]
[1641975521167,0.00397897,3231.8,3231.6,0.3]
[1641975521567,0.00341054,3231.7,3231.6,0.3]
[1641975524813,0.00341054,3231.7,3231.3,1.54748]
[1641975525013,18.65241054,3231.7,3230.8,1.1455]
[1641975525214,3.32128614,3231.6,3230.9,0.77394]
[1641975525415,3.32128614,3231.6,3230.9,0.00113684]
[1641975525416,0.449,3231.5,3230.9,0.00113684]
[1641975525613,0.4512737,3231.5,3230.9,0.00113684]
[1641975525817,0.00170527,3231.4,3230.9,0.00113684]
[1641975526258,0.00113685,3231.3,3230.7,0.00227369]
[1641975526661,0.00170527,3231.4,3230.7,0.00227369]
[1641975526858,0.00170527,3231.4,3231.0,0.77391]
[1641975527058,0.00113685,3231.3,3231.0,0.77391]
[1641975527259,0.00113685,3231.3,3230.7,0.00227369]
[1641975527463,0.00170527,3231.4,3230.7,0.00227369]
[1641975527862,0.00113685,3231.3,3230.7,0.00227369]
[1641975528265,0.00170527,3231.4,3230.7,0.00227369]
[1641975528664,0.00113685,3231.3,3230.9,0.77393]
[1641975529064,0.61149512,3231.5,3230.9,0.77393]
[1641975529469,0.61149512,3231.5,3231.0,0.00227369]
[1641975529667,0.449,3231.5,3231.0,0.00227369]
[1641975530735,0.449,3231.5,3231.1,0.77388]
[1641975531135,0.449,3231.5,3231.2,0.00113684]
[1641975531836,0.449,3231.5,3230.6,6.57941]
[1641975531837,0.449,3231.5,3230.9,0.77389]
[1641975532235,0.449,3231.5,3231.0,0.00227369]
[1641975533235,0.449,3231.5,3230.7,0.00397896]
[1641975533435,0.77395,3231.4,3230.7,0.00397896]
[1641975534060,0.7739556,3231.3,3230.7,0.00397896]
[1641975534260,18.9739556,3231.3,3230.7,0.00397896]
[1641975535065,19.7479356,3231.3,3230.7,0.00397896]
[1641975535667,0.449,3231.5,3230.7,0.00397896]
[1641975535668,0.449,3231.5,3230.9,0.77389]
[1641975536066,0.449,3231.5,3231.0,0.00227369]
[1641975536667,0.449,3231.5,3230.7,2.5048268]
[1641975536871,0.449,3231.5,3230.7,0.00397896]
[1641975537070,0.449,3231.5,3230.8,0.00341054]
[1641975537270,0.449,3231.5,3230.7,0.00397896]
[1641975537519,0.449,3231.5,3230.9,0.77389]
[1641975537819,1.22289,3231.5,3231.0,0.00227369]
[1641975538218,19.42289,3231.5,3231.0,0.00227369]
[1641975538419,1.22289,3231.5,3231.0,0.00227369]
[1641975538819,1.22289,3231.5,3231.0,0.77387]
[1641975539221,1.22289,3231.5,3231.1,0.00170527]
[1641975539420,19.42289,3231.5,3231.1,0.00170527]
[1641975539821,19.42289,3231.5,3230.7,0.00397896]
[1641975540223,19.72289,3231.5,3230.7,0.00397896]
[1641975540523,0.3,3231.2,3230.7,0.00397896]
[1641975540723,18.649,3231.1,3230.7,0.00397896]
[1641975541179,18.949,3231.1,3230.2,0.00682108]
[1641975541370,0.7741202,3230.7,3230.2,0.00682108]
[1641975543372,0.77419,3230.6,3230.2,0.00682108]
[1641975543572,0.7742166,3230.5,3230.2,0.00682108]
[1641975543773,18.9742166,3230.5,3230.2,0.00682108]
[1641975543973,0.7742166,3230.5,3230.2,0.00682108]
[1641975544173,0.7742166,3230.5,3230.0,0.00795792]
[1641975545417,0.7742278,3230.3,3230.0,0.00795792]
[1641975546014,1.5483674,3230.6,3230.0,0.00795792]
[1641975546216,2.35097719,3230.8,3230.0,0.00795792]
[1641975546217,1.57682719,3230.8,3230.0,0.00795792]
[1641975546415,0.77418,3230.6,3230.0,0.00795792]
[1641975546616,0.7741391,3230.5,3230.0,0.00795792]
[1641975546915,18.9741391,3230.5,3230.0,0.00795792]
[1641975547115,0.3,3230.4,3230.0,0.00795792]
[1641975547318,18.5,3230.4,3230.0,0.00795792]
[1641975547718,0.3,3230.4,3230.0,0.00795792]
[1641975548216,1.5482977,3230.7,3230.0,0.00795792]
[1641975548416,1.57682719,3230.8,3230.0,0.00795792]
[1641975548963,0.77417,3230.6,3230.0,0.00795792]
[1641975549163,1.57682719,3230.8,3230.0,0.00795792]
[1641975549367,18.2,3230.7,3230.0,0.00795792]
[1641975549764,0.7741101,3230.5,3230.0,0.00795792]
[1641975550170,0.3,3230.4,3230.0,0.00795792]
[1641975550567,18.949,3230.6,3230.0,0.00795792]
[1641975550967,18.649,3230.6,3230.0,0.00795792]
[1641975551770,18.949,3230.6,3230.0,0.00795792]
[1641975553119,18.949,3230.6,3230.1,0.77408]
[1641975553521,18.949,3230.6,3230.2,0.00682108]
[1641975553722,0.749,3230.6,3230.2,0.00682108]
[1641975553920,0.449,3230.6,3230.2,0.00682108]
[1641975554320,18.2,3230.5,3230.2,0.00682108]
[1641975554520,18.2,3230.4,3230.2,0.00682108]
[1641975554721,18.2,3230.4,3230.0,0.00795792]
[1641975555128,0.449,3230.3,3230.0,0.00795792]
[1641975555328,18.2,3230.2,3230.0,0.00795792]
[1641975555528,18.649,3230.2,3230.0,0.00795792]
[1641975556974,0.449,3230.2,3230.0,0.00795792]
[1641975560721,18.9741516,3230.5,3230.0,0.00795792]
[1641975563324,0.749,3230.4,3230.0,0.00795792]
[1641975563522,18.9742604,3230.3,3230.0,0.00795792]
[1641975563767,18.649,3230.2,3230.0,0.00795792]
[1641975563965,18.949,3230.2,3230.0,0.00795792]
[1641975564370,0.749,3230.2,3230.0,0.00795792]
[1641975564666,18.2,3230.1,3230.0,0.00795792]
[1641975571679,18.649,3230.1,3230.0,0.00795792]
[1641975583326,19.42334,3230.1,3230.0,0.00795792]
[1641975584726,19.42334,3230.1,3229.9,0.63560149]